bitfinex-derivatives/quotes_SOLF0:USTF0_20241212
["timestamp","ask_amount","ask_price","bid_price","bid_amount"]
[1734003653383,2.1835,228.91,228.87,2.1838]
[1734003654172,2.1,228.94,228.87,2.1838]
[1734003654377,2.1832,228.94,228.89,2.1836]
[1734003656378,2.1833,228.93,228.89,2.1836]
[1734003656571,2.1,228.95,228.87,12.99139906]
[1734003657180,2.1836,228.9,228.87,12.99139906]
[1734003660084,2.1836,228.9,228.87,15.17519906]
[1734003660481,2.1,228.95,228.87,15.17519906]
[1734003660687,2.1,228.95,228.89,2.1836]
[1734003661295,2.1833,228.93,228.9,12.99139906]
[1734003662587,2.1,228.97,228.9,12.99139906]
[1734003662791,20.40713046,229.02,228.93,12.99139906]
[1734003663090,22.50713046,229.01,228.93,12.99139906]
[1734003663292,20.41190534,229.0,228.93,12.99139906]
[1734003663497,2.1827,229.0,228.96,2.1829]
[1734003664398,2.1825,229.02,228.96,12.99139906]
[1734003664789,211.12350895,229.09,228.99,12.99139906]
[1734003664790,8.65397103,229.04,228.99,12.99139906]
[1734003664990,211.12350895,229.09,228.99,12.99139906]
[1734003664991,2.1821,229.05,228.99,12.99139906]
[1734003665389,2.1,229.07,229.02,12.99139906]
[1734003665590,2.182,229.06,229.02,12.99139906]
[1734003666990,54.71365887,229.1,229.05,15.17349906]
[1734003666991,2.1817,229.1,229.05,15.17349906]
[1734003667195,20.43467688,229.13,229.05,12.99139906]
[1734003667593,2.1,229.14,229.05,12.99139906]
[1734003667993,2.1816,229.11,229.06,2.182]
[1734003668587,2.1816,229.11,229.05,12.99139906]
[1734003668588,2.1,229.14,229.05,15.17349906]
[1734003668792,2.1,229.14,229.02,12.99139906]
[1734003669403,2.1,229.14,229.0,2.1]
[1734003669798,2.1822,229.04,229.0,2.1]
[1734003670101,2.1,229.09,229.0,2.1]
[1734003671109,2.1,229.09,229.02,12.99139906]
[1734003671402,2.1,229.12,229.02,12.99139906]
[1734003672299,2.1,229.12,229.02,15.17369906]
[1734003672499,2.1,229.12,229.02,12.99139906]
[1734003672901,2.1,229.12,229.01,1.3205]
[1734003673599,2.1822,229.04,229.01,1.3205]
[1734003674502,2.1,229.12,229.02,12.99139906]
[1734003674996,2.1,229.13,229.05,12.99139906]
[1734003675302,2.1817,229.1,229.05,12.99139906]
[1734003676004,2.1,229.13,229.05,15.17349906]
[1734003676301,2.1,229.13,229.05,12.99139906]
[1734003676503,2.1,229.13,229.04,1.3628]
[1734003678104,2.1,229.13,228.99,12.99139906]
[1734003678404,12.99139906,229.12,228.99,12.99139906]
[1734003678605,12.99139906,229.12,228.97,2.1]
[1734003678606,2.1825,229.01,228.97,2.1]
[1734003679002,2.1,229.05,228.97,2.1]
[1734003679300,2.1,229.05,228.96,12.99139906]
[1734003679905,2.1826,229.0,228.96,12.99139906]
[1734003680405,2.1,229.05,228.97,2.1828]
[1734003680600,2.1,229.05,228.99,12.99139906]
[1734003681804,2.1824,229.03,228.99,12.99139906]
[1734003682002,2.1824,229.03,228.94,9.51192256]
[1734003682003,2.1,229.06,229.02,12.99139906]
[1734003682204,2.1,229.1,229.02,12.99139906]
[1734003682402,2.182,229.07,229.02,12.99139906]
[1734003682601,2.182,229.07,228.94,9.92496256]
[1734003682602,2.1,229.1,228.99,12.99139906]
[1734003683201,2.1827,228.99,228.96,12.99139906]
[1734003683404,2.1,229.02,228.96,12.99139906]
[1734003683596,2.1,229.02,228.94,4.63324]
[1734003683803,2.1827,228.99,228.94,6.81634]
[1734003684002,2.1,229.02,228.94,4.63324]
[1734003684508,2.1,229.02,228.95,2.183]
[1734003684509,2.1826,229.0,228.95,2.183]
[1734003684903,2.1826,229.0,228.96,12.99139906]
[1734003685609,2.1,229.02,228.96,12.99139906]
[1734003685802,2.1,229.02,228.96,15.17439906]
[1734003686605,2.1826,229.0,228.96,12.99139906]
[1734003687805,2.1826,229.0,228.96,15.17439906]
[1734003688001,2.1826,229.0,228.96,12.99139906]
[1734003688304,2.1,229.02,228.94,1.78034]
[1734003688603,2.1,229.02,228.94,0.41304]
[1734003689004,2.1831,228.95,228.94,0.41304]
[1734003692008,2.1,228.99,228.94,0.41304]
[1734003692207,5.27902404,229.04,228.94,0.41304]
[1734003692208,2.1,229.01,228.94,0.41304]
[1734003693117,2.1,229.01,228.96,2.183]
[1734003693310,2.1,229.02,228.96,12.99139906]
[1734003693912,2.1826,229.01,228.96,15.17439906]
[1734003695910,2.1,229.04,228.96,12.99139906]
[1734003696118,2.1,229.04,228.99,12.99139906]
[1734003696411,12.99139906,229.12,228.99,12.99139906]
[1734003696412,2.1,229.06,228.99,12.99139906]
[1734003696619,2.1824,229.02,228.99,12.99139906]
[1734003698316,2.1826,229.0,228.96,15.17439906]
[1734003698517,2.1,229.05,228.96,12.99139906]
[1734003700619,2.1826,229.0,228.96,12.99139906]
[1734003702017,2.1826,229.0,228.96,15.17439906]
[1734003702218,2.1824,229.02,228.96,12.99139906]
[1734003703124,2.1823,229.03,228.98,2.1827]
[1734003703326,2.1,229.05,228.99,12.99139906]
[1734003703720,2.1,229.09,229.02,12.99139906]
[1734003704725,2.1,229.1,229.02,12.99139906]
[1734003705018,2.1,229.11,229.03,1.4552]
[1734003705220,2.1,229.11,229.05,12.99139906]
[1734003705623,4.2816,229.11,229.06,2.182]
[1734003706116,2.1817,229.1,229.05,15.17349906]
[1734003707120,2.1,229.12,229.05,12.99139906]
[1734003707315,2.1,229.12,229.03,1.4552]
[1734003708419,2.1819,229.08,229.03,3.6375]
[1734003709020,2.1816,229.1,229.06,2.182]
[1734003710516,2.1817,229.09,229.05,2.1821]
[1734003711214,4.2816,229.11,229.07,2.1819]
[1734003711825,2.1816,229.11,229.07,2.1819]
[1734003712623,2.1817,229.1,229.05,12.99139906]
[1734003713021,2.1817,229.1,229.05,15.17339906]
[1734003714133,2.1817,229.1,229.06,2.182]
[1734003718124,2.1,229.14,229.04,1.4431]
[1734003718631,10.72971283,229.14,229.04,1.4431]
[1734003718821,2.1,229.14,229.03,1.4552]
[1734003719024,2.1,229.14,228.96,12.99139906]
[1734003719025,12.99139906,229.12,228.96,12.99139906]
[1734003719324,22.47186131,229.14,228.95,5.6461]
[1734003719325,2.1827,229.0,228.95,5.6461]
[1734003719529,12.99139906,229.09,228.95,1.3631]
[1734003719530,2.1,229.03,228.95,1.3631]
[1734003721028,2.1827,228.99,228.95,1.3631]
[1734003722429,2.1827,228.99,228.96,0.40892]
[1734003726234,2.1828,228.98,228.96,0.40892]
[1734003727036,2.1,229.03,228.96,0.40892]
[1734003728230,15.09139906,229.03,228.96,0.40892]
[1734003728430,2.1,229.02,228.96,0.40892]
[1734003729133,2.1829,228.97,228.96,0.40892]
[1734003729337,4.2829,228.97,228.96,0.40892]
[1734003729639,2.1,228.97,228.84,12.99139906]
[1734003729829,2.1,228.96,228.84,12.99139906]
[1734003730225,12.99139906,229.0,228.84,12.99139906]
[1734003730533,2.1,228.99,228.85,2.184]
[1734003731037,2.1,228.99,228.84,12.99139906]
[1734003731038,2.1834,228.92,228.87,2.1838]
[1734003731331,12.99139906,229.0,228.84,12.99139906]
[1734003731527,2.1834,228.92,228.86,2.1838]
[1734003732329,2.1,228.92,228.86,2.1838]
[1734003732535,2.1835,228.91,228.86,2.1838]
[1734003733238,2.1836,228.9,228.84,12.99139906]
[1734003734041,2.1,228.92,228.84,12.99139906]
[1734003734231,2.1,228.92,228.87,12.99139906]
[1734003734433,2.1,228.94,228.87,12.99139906]
[1734003734839,4.2832,228.94,228.89,2.1836]
[1734003735335,2.1833,228.93,228.88,2.1837]
[1734003735534,2.1,228.94,228.88,2.1837]
[1734003735737,2.1,228.94,228.87,12.99139906]
[1734003736733,2.1834,228.92,228.87,15.17519906]
[1734003736935,2.1,228.94,228.87,12.99139906]
[1734003737237,2.1833,228.93,228.88,2.1836]
[1734003738539,2.1833,228.93,228.89,2.1836]
[1734003738945,2.1833,228.93,228.87,12.99139906]
[1734003739443,2.1834,228.92,228.88,2.1837]
[1734003739836,2.1,228.94,228.87,12.99139906]
[1734003740040,2.1,228.95,228.89,2.1836]
[1734003740443,2.1832,228.94,228.89,2.1836]
[1734003741944,2.1833,228.93,228.89,2.1836]
[1734003743749,2.1835,228.91,228.87,15.17519906]
[1734003743940,2.1,228.95,228.84,12.99139906]
[1734003744547,2.1,228.95,228.83,1.4153]
[1734003745043,2.1841,228.85,228.83,1.4153]
[1734003745247,2.1,228.89,228.84,8.32022969]
[1734003745448,8.32022969,228.91,228.84,8.32022969]
[1734003745449,2.1,228.88,228.84,8.32022969]
[1734003745852,2.1839,228.87,228.84,8.32022969]
[1734003746149,2.1,228.88,228.85,8.32022969]
[1734003746446,2.1838,228.88,228.85,8.32022969]
[1734003747249,2.1838,228.88,228.83,3.5995]
[1734003748954,2.1,228.89,228.83,1.4153]
[1734003749149,2.1,228.89,228.85,2.184]
[1734003749949,4.2836,228.9,228.85,2.184]
[1734003750851,2.1,228.9,228.85,2.184]
[1734003751055,12.99774661,228.97,228.83,1.4153]
[1734003751350,5.29794245,228.98,228.88,12.99774661]
[1734003751351,2.1,228.96,228.88,12.99774661]
[1734003751550,2.1,228.95,228.88,12.99774661]
[1734003751956,2.1832,228.94,228.89,2.1836]
[1734003752255,2.1,228.95,228.88,12.99774661]
[1734003752652,2.1833,228.93,228.88,15.18144661]
[1734003752947,2.1,228.95,228.88,12.99774661]
[1734003753148,2.1,228.95,228.84,12.99774661]
[1734003753356,2.1839,228.87,228.84,12.99774661]
[1734003753550,2.1839,228.87,228.83,3.5995]
[1734003753945,2.1839,228.87,228.83,1.4153]
[1734003755655,2.1839,228.87,228.83,3.5995]
[1734003756752,2.1839,228.87,228.83,1.4153]
[1734003756952,2.1,228.94,228.84,12.99774661]
[1734003757157,2.1,228.94,228.88,12.99774661]
[1734003758055,2.1,228.94,228.9,2.1835]
[1734003759754,4.2832,228.94,228.9,2.1835]
[1734003762460,0.19649,228.99,228.91,12.99774661]
[1734003762765,2.37919,228.99,228.94,15.18084661]
[1734003763668,0.19649,228.99,228.94,15.18084661]
[1734003763864,0.19649,228.99,228.95,2.183]
[1734003764063,0.19649,228.99,228.97,12.99774661]
[1734003764361,0.19649,228.99,228.98,2.1828]
[1734003766064,2.1,229.06,229.0,2.1825]
[1734003766267,2.1822,229.04,229.0,15.18024661]
[1734003766563,12.99774661,229.16,229.03,2.1823]
[1734003766768,2.1815,229.12,229.03,15.18004661]
[1734003766966,2.1,229.11,229.03,15.18004661]
[1734003767161,2.1,229.1,229.03,15.18004661]
[1734003767666,2.1,229.1,229.04,2.1822]
[1734003768668,2.1818,229.09,229.04,2.1822]
[1734003769065,2.1,229.1,229.03,12.99774661]
[1734003770362,2.1817,229.09,229.03,15.17994661]
[1734003771270,2.1817,229.09,229.04,2.1822]
[1734003773267,2.1,229.12,229.03,12.99774661]
[1734003773574,2.1,229.12,229.04,1.3663]
[1734003774071,2.1815,229.12,229.06,2.182]
[1734003774666,2.1816,229.11,229.06,2.182]
[1734003777172,2.1816,229.11,229.08,8.30238864]
[1734003781173,2.1815,229.12,229.08,8.30238864]
[1734003781472,8.30238864,229.12,229.04,1.3663]
[1734003781665,8.30238864,229.08,229.01,8.30238864]
[1734003781869,2.1,229.07,229.01,8.30238864]
[1734003782270,2.182,229.06,229.03,8.30238864]
[1734003782473,2.1,229.07,229.03,8.30238864]
[1734003782866,2.1,229.07,229.0,1.451]
[1734003783066,2.1,229.07,229.01,8.30238864]
[1734003783467,2.1824,229.02,229.01,8.30238864]
[1734003783870,2.1,229.07,229.01,8.30238864]
[1734003784671,8.30238864,229.06,228.98,8.30238864]
[1734003784877,8.30238864,229.04,228.98,8.30238864]
[1734003785375,2.1,229.07,228.97,1.337]
[1734003786773,2.1,229.07,228.99,12.98531216]
[1734003787777,5.30000374,229.15,228.97,3.437]
[1734003787778,2.1,229.11,229.02,12.98531216]
[1734003788572,2.1,229.11,228.97,3.437]
[1734003788573,2.1,229.11,228.99,12.98531216]
[1734003788772,2.1824,229.03,228.99,12.98531216]
[1734003789173,2.1,229.1,229.02,12.98531216]
[1734003789374,2.1818,229.09,229.04,2.1822]
[1734003791976,2.1,229.1,229.04,12.98531216]
[1734003792370,2.1,229.1,229.06,2.182]
[1734003792679,2.1,229.1,229.04,12.98531216]
[1734003793774,2.1,229.1,229.07,2.1819]
[1734003794778,2.1816,229.11,229.07,2.1819]
[1734003798779,2.1815,229.12,229.07,2.1819]
[1734003799378,2.1816,229.11,229.07,2.1819]
[1734003799581,2.1,229.14,229.05,2.1821]
[1734003799973,2.1817,229.1,229.04,14.41781216]
[1734003800173,2.1817,229.1,229.06,2.182]
[1734003800481,2.1818,229.09,229.04,14.41781216]
[1734003800682,2.1818,229.09,229.05,2.1821]
[1734003800879,2.1,229.14,229.04,14.41781216]
[1734003801476,2.1815,229.11,229.04,16.60001216]
[1734003801785,2.1,229.14,229.04,14.41781216]
[1734003802583,2.1816,229.11,229.06,2.1819]
[1734003804180,2.1,229.14,229.04,14.41781216]
[1734003805285,2.1818,229.09,229.06,8.30354919]
[1734003805888,2.1,229.14,229.03,1.3677]
[1734003806090,2.1816,229.11,229.08,8.30354919]
[1734003806790,2.1815,229.12,229.08,8.30354919]
[1734003807191,2.1815,229.12,229.08,10.48534919]
[1734003807490,2.1815,229.12,229.08,8.30354919]
[1734003809490,2.1816,229.11,229.08,8.30354919]
[1734003810487,8.62860792,229.13,229.08,8.30354919]
[1734003810782,2.1816,229.11,229.08,8.30354919]
[1734003810983,8.30354919,229.12,229.03,1.3677]
[1734003811292,8.30354919,229.1,229.02,8.30354919]
[1734003811484,10.72850491,229.09,229.02,8.30354919]
[1734003811986,10.72850491,229.09,229.04,8.30354919]
[1734003812183,2.1,229.1,229.06,8.30354919]
[1734003812394,2.1817,229.1,229.08,8.30354919]
[1734003812787,2.1,229.11,229.08,8.30354919]
[1734003813687,4.2816,229.11,229.08,8.30354919]
[1734003815590,2.1816,229.11,229.08,8.30354919]
[1734003819292,2.1,229.12,229.08,8.30354919]
[1734003819495,2.1816,229.1,229.08,8.30354919]
[1734003821797,2.1816,229.11,229.08,8.30354919]
[1734003823301,2.1816,229.11,229.05,1.3847]
[1734003823302,2.1,229.12,229.1,8.30354919]
[1734003824192,8.63000694,229.15,229.1,8.30354919]
[1734003824193,2.1813,229.14,229.1,8.30354919]
[1734003824399,2.1,229.15,229.1,8.30354919]
[1734003825598,2.1815,229.12,229.1,8.30354919]
[1734003826500,180.64141675,229.22,229.1,8.30354919]
[1734003826710,10.73049327,229.21,229.18,8.30354919]
[1734003827001,10.73049327,229.21,229.2,8.30354919]
[1734003827002,2.1,229.21,229.2,8.30354919]
[1734003827201,4.2807,229.21,229.2,8.30354919]
[1734003828405,2.1,229.21,229.2,8.30354919]
[1734003829405,2.1,229.21,229.14,2.7556]
[1734003829806,2.1807,229.2,229.16,8.30354919]
[1734003830105,2.1,229.21,229.18,8.30354919]
[1734003830505,2.1,229.23,229.18,8.30354919]
[1734003832011,2.1,229.23,229.17,8.30354919]
[1734003833314,2.1806,229.21,229.17,8.30354919]
[1734003835001,2.1806,229.21,229.14,1.4237]
[1734003835002,2.1806,229.21,229.19,8.30354919]
[1734003835208,4.2805,229.23,229.19,8.30354919]
[1734003835403,2.1,229.23,229.19,8.30354919]
[1734003836414,2.1806,229.22,229.19,8.30354919]
[1734003836712,2.1,229.23,229.17,8.30354919]
[1734003837813,8.30354919,229.2,229.14,1.4237]
[1734003838110,8.30354919,229.18,229.06,3.4462]
[1734003838410,8.30354919,229.16,229.08,8.30354919]
[1734003838614,2.1815,229.12,229.08,8.30354919]
[1734003838813,2.1815,229.12,229.1,8.30354919]
[1734003839110,8.30354919,229.16,229.06,3.4462]
[1734003839318,2.1816,229.11,229.07,8.30354919]
[1734003839612,2.1816,229.11,229.07,8.58401919]
[1734003839913,2.1816,229.11,229.09,8.30354919]
[1734003841214,2.1,229.17,229.09,8.30354919]
[1734003841405,2.1,229.17,229.12,8.30354919]
[1734003842007,2.1811,229.16,229.12,8.30354919]
[1734003842210,2.1,229.17,229.12,8.30354919]
[1734003843308,2.1814,229.13,229.12,8.30354919]
[1734003844616,8.30354919,229.13,229.07,0.28047]
[1734003844816,2.08,229.12,229.07,0.28047]
[1734003845017,2.1817,229.1,229.07,0.28047]
[1734003845219,2.1817,229.1,229.07,8.58401919]
[1734003848226,2.08,229.12,229.09,8.30354919]
[1734003848519,181.16941675,229.22,229.11,8.30354919]
[1734003848520,2.1,229.14,229.11,8.30354919]
[1734003848715,2.1814,229.14,229.11,8.30354919]
[1734003849419,2.1814,229.13,229.11,8.30354919]
[1734003851219,2.1,229.12,229.07,0.28047]
[1734003851418,8.30354919,229.1,229.07,0.28047]
[1734003851624,10.40354919,229.12,229.07,0.28047]
[1734003851820,8.30354919,229.12,229.07,0.28047]
[1734003852015,2.1,229.11,229.07,0.28047]
[1734003852723,2.1818,229.08,229.07,0.28047]
[1734003852931,2.1,229.11,229.05,9.67514919]
[1734003854222,2.182,229.07,229.05,9.67514919]
[1734003857817,2.182,229.07,229.05,1.3716]
[1734003858123,2.182,229.06,229.05,1.3716]
[1734003858919,2.1824,229.02,229.01,0.22691]
[1734003859526,2.1824,229.02,229.01,8.53045919]
[1734003860020,5.35995876,229.12,229.01,8.53045919]
[1734003860219,2.1,229.11,229.06,8.30354919]
[1734003860437,2.1817,229.1,229.06,8.30354919]
[1734003860626,2.1,229.11,229.06,8.30354919]
[1734003861235,13.53133927,229.14,229.06,8.30354919]
[1734003861428,2.1,229.13,229.06,8.30354919]
[1734003861831,2.1819,229.08,229.03,2.1822]
[1734003862029,2.1819,229.08,229.06,8.30354919]
[1734003863427,1.6005,229.21,229.06,8.30354919]
[1734003863734,8.30354919,229.19,229.13,8.30354919]
[1734003863934,2.1813,229.17,229.15,8.30354919]
[1734003864127,4.2813,229.17,229.15,8.30354919]
[1734003864327,2.1,229.17,229.15,8.30354919]
[1734003864537,2.1813,229.16,229.15,8.30354919]
[1734003865831,2.1,229.18,229.13,8.30354919]
[1734003866939,2.1812,229.17,229.13,8.30354919]
[1734003867141,13.61637541,229.21,229.15,8.30354919]
[1734003867328,2.1,229.2,229.15,8.30354919]
[1734003867533,2.181,229.19,229.15,8.30354919]
[1734003867733,2.181,229.19,229.17,8.30354919]
[1734003868329,2.1811,229.18,229.17,8.30354919]
[1734003869929,2.1811,229.18,229.14,8.30354919]
[1734003872140,2.1813,229.16,229.11,2.6602]
[1734003872339,2.1813,229.16,229.14,8.30354919]
[1734003872739,2.1814,229.15,229.14,8.30354919]
[1734003874135,2.1813,229.16,229.14,8.30354919]
[1734003874740,54.67102291,229.27,229.14,8.30354919]
[1734003874944,4.3601,229.3,229.22,8.30354919]
[1734003874945,2.08,229.28,229.22,8.30354919]
[1734003875141,2.08,229.29,229.22,8.30354919]
[1734003875641,2.1802,229.27,229.22,8.30354919]
[1734003875840,5.36159936,229.29,229.22,8.30354919]
[1734003876032,7.44159936,229.29,229.22,8.30354919]
[1734003876738,2.1805,229.25,229.22,8.30354919]
[1734003876939,2.08,229.29,229.24,8.30354919]
[1734003877138,2.08,229.29,229.15,3.5023]
[1734003877139,2.08,229.29,229.26,8.30354919]
[1734003878634,2.1801,229.28,229.23,2.1806]
[1734003878835,2.1801,229.28,229.26,8.30354919]
[1734003879443,8.62027173,229.3,229.26,8.30354919]
[1734003879637,2.18,229.3,229.28,8.30354919]
[1734003884152,1.3415,229.39,229.28,8.30354919]
[1734003884352,2.1797,229.33,229.28,8.30354919]
[1734003884748,2.1797,229.33,229.25,1.4449]
[1734003884959,2.08,229.36,229.32,8.30354919]
[1734003885557,2.1795,229.35,229.32,8.30354919]
[1734003885753,2.08,229.36,229.29,2.18]
[1734003886050,2.1798,229.32,229.26,5.5797]
[1734003886256,2.1798,229.32,229.29,8.30354919]
[1734003887054,2.08,229.36,229.29,8.30354919]
[1734003887251,2.1796,229.34,229.31,8.30354919]
[1734003887853,2.08,229.36,229.26,3.3995]
[1734003888149,2.08,229.38,229.32,8.30354919]
[1734003888457,2.08,229.38,229.34,8.30354919]
[1734003889656,2.1793,229.37,229.34,8.30354919]
[1734003890151,2.08,229.38,229.26,1.3195]
[1734003890557,2.08,229.38,229.26,3.3995]
[1734003890558,10.38354919,229.38,229.26,3.3995]
[1734003890762,10.38354919,229.38,229.3,8.30354919]
[1734003890763,2.1799,229.31,229.3,8.30354919]
[1734003891664,2.1798,229.33,229.3,8.30354919]
[1734003893661,2.1798,229.33,229.28,2.1801]
[1734003893863,2.1798,229.33,229.31,8.30354919]
[1734003895372,2.1798,229.33,229.28,2.1801]
[1734003895569,2.1798,229.33,229.31,8.30354919]
[1734003896162,2.1798,229.32,229.31,8.30354919]
[1734003896667,2.1796,229.34,229.29,8.30354919]
[1734003896870,8.30354919,229.36,229.29,8.30354919]
[1734003897565,2.1799,229.32,229.29,8.30354919]
[1734003898872,8.30354919,229.36,229.26,1.3195]
[1734003899071,8.30354919,229.36,229.27,8.30354919]
[1734003899270,2.08,229.38,229.25,1.4449]
[1734003899271,8.30354919,229.34,229.25,1.4449]
[1734003899568,2.1802,229.28,229.25,1.4449]
[1734003899772,2.1802,229.28,229.26,8.30354919]
[1734003900776,2.08,229.33,229.26,8.30354919]
[1734003900968,2.08,229.33,229.28,8.30354919]
[1734003901773,2.1799,229.31,229.28,8.30354919]
[1734003902070,2.08,229.33,229.28,8.30354919]
[1734003902276,2.08,229.33,229.26,8.30354919]
[1734003902872,2.1802,229.28,229.26,8.30354919]
[1734003904366,2.08,229.33,229.26,8.30354919]
[1734003904566,2.08,229.33,229.29,8.30354919]
[1734003906270,2.1798,229.32,229.29,8.30354919]
[1734003906468,2.1798,229.32,229.31,8.30354919]
[1734003908670,2.08,229.36,229.27,2.1802]
[1734003908866,2.1799,229.31,229.28,8.30354919]
[1734003909275,8.30354919,229.33,229.26,8.30354919]
[1734003909475,8.30354919,229.33,229.25,1.4449]
[1734003909778,8.30354919,229.33,229.26,8.30354919]
[1734003910377,2.1802,229.28,229.26,8.30354919]
[1734003911175,2.1806,229.24,229.19,2.1809]
[1734003911478,8.30354919,229.29,229.21,8.30354919]
[1734003911675,2.08,229.28,229.21,8.30354919]
[1734003912283,2.1807,229.23,229.21,8.30354919]
[1734003912478,2.08,229.28,229.21,8.30354919]
[1734003912969,2.1809,229.21,229.18,1.4197]
[1734003913178,2.08,229.23,229.18,9.72324919]
[1734003913378,10.38354919,229.23,229.18,1.4197]
[1734003913680,10.38354919,229.23,229.14,8.30354919]
[1734003914573,2.08,229.23,229.18,8.30354919]
[1734003914777,2.1809,229.21,229.18,8.30354919]
[1734003914974,2.1809,229.21,229.16,2.1813]
[1734003914975,2.08,229.23,229.2,8.30354919]
[1734003915177,2.08,229.23,229.16,2.1813]
[1734003915377,2.1808,229.21,229.15,15.1421244]
[1734003916780,2.08,229.23,229.15,12.9607244]
[1734003917281,2.08,229.23,229.13,1.3269]
[1734003918277,10.70349412,229.23,229.13,1.3269]
[1734003918473,8.62349412,229.22,229.11,2.8276]
[1734003918676,2.08,229.23,229.11,1.4574]
[1734003918871,22.45122239,229.23,229.11,1.4574]
[1734003919077,12.9607244,229.21,229.09,0.28871]
[1734003919285,20.36959544,229.2,229.09,0.28871]
[1734003919575,20.36959544,229.19,229.09,0.28871]
[1734003919780,10.70919624,229.18,229.09,0.28871]
[1734003919980,2.1819,229.1,229.09,0.28871]
[1734003920179,2.08,229.12,229.09,0.28871]
[1734003922586,2.1819,229.1,229.09,0.28871]
[1734003923579,2.08,229.12,229.09,0.28871]
[1734003924975,4.2617,229.12,229.09,0.28871]
[1734003928486,2.1819,229.1,229.09,0.28871]
[1734003929587,2.08,229.12,229.09,0.28871]
[1734003929783,4.2618,229.12,229.09,0.28871]
[1734003929982,2.1818,229.12,229.07,12.9607244]
[1734003930487,2.08,229.14,229.05,1.3972]
[1734003931087,2.1815,229.14,229.08,2.182]
[1734003931286,2.08,229.18,229.13,12.9607244]
[1734003931479,4.3602,229.29,229.13,12.9607244]
[1734003931480,2.08,229.2,229.13,12.9607244]
[1734003931687,1.3371,229.28,229.16,12.9607244]
[1734003931981,2.08,229.23,229.16,12.9607244]
[1734003932189,56.75908777,229.24,229.16,12.9607244]
[1734003932384,2.1807,229.22,229.17,2.1812]
[1734003933093,2.1806,229.23,229.19,12.9607244]
[1734003933681,2.08,229.24,229.19,12.9607244]
[1734003933888,4.2605,229.24,229.19,12.9607244]
[1734003934185,2.08,229.24,229.16,12.9607244]
[1734003934581,2.1808,229.22,229.16,15.1419244]
[1734003935794,2.1809,229.21,229.16,15.1419244]
[1734003936090,2.08,229.24,229.13,17.0234244]
[1734003936394,15.0407244,229.24,229.13,1.3252]
[1734003937693,2.1814,229.15,229.13,1.3252]
[1734003938787,4.2613,229.17,229.13,1.3252]
[1734003938990,2.08,229.21,229.13,14.2859244]
[1734003939193,18.24746489,229.27,229.13,14.2859244]
[1734003939194,2.08,229.22,229.13,14.2859244]
[1734003939798,2.08,229.22,229.16,2.1813]
[1734003940990,2.08,229.23,229.16,2.1813]
[1734003941588,2.1809,229.21,229.16,2.1813]
[1734003942387,2.1808,229.21,229.16,2.1813]
[1734003942593,2.08,229.23,229.16,2.1813]
[1734003942996,2.08,229.23,229.14,1.3781]
[1734003942997,45.36,229.35,229.21,2.1808]
[1734003943190,45.36,229.35,229.2,12.9607244]
[1734003943191,2.08,229.34,229.2,12.9607244]
[1734003943497,2.1801,229.29,229.2,12.9607244]
[1734003943693,2.1801,229.29,229.23,2.1806]
[1734003944595,2.1802,229.28,229.23,2.1806]
[1734003946197,2.08,229.34,229.2,12.9607244]
[1734003946395,2.18,229.3,229.25,2.1803]
[1734003947394,2.1799,229.31,229.26,2.1803]
[1734003947596,1.4215,229.37,229.24,12.9607244]
[1734003947597,2.08,229.32,229.24,12.9607244]
[1734003947798,2.08,229.33,229.25,1.3993]
[1734003948001,1.4215,229.37,229.27,12.9607244]
[1734003948199,12.9607244,229.42,229.27,12.9607244]
[1734003948200,2.08,229.36,229.27,12.9607244]
[1734003950404,2.1795,229.35,229.3,2.1799]
[1734003951103,2.08,229.4,229.3,12.9607244]
[1734003951803,14.3358244,229.45,229.3,12.9607244]